{"text_format":"1","workbook":"xlsx","n_sheets":2,"sheets":["MCP_or_generator_list","Resp_1"],"not_rendered":{"charts":0,"images":0,"macros":0,"external_links":1,"defined_names":18,"comments":0,"pivot_tables":0},"unopened":[],"bounds":{"document_bytes":16777216,"sheet_cells":100000,"rows_first":2000,"rows_last":500,"rows_between":2000,"halvings":0,"cell_chars":16384,"cell_head_chars":4096},"cells_cut":0,"cells_raw":0,"read":"whole","date_system":"1900"}

{"sheet":"MCP_or_generator_list","index":0,"n_rows":21,"n_cols":35,"rows_kept":21,"cut":false,"hidden":false,"merged":[[1,31,3,31],[1,32,3,32],[1,33,3,33],[1,34,3,34],[2,12,3,12],[2,23,3,23],[1,25,3,25],[1,26,3,26],[1,27,3,27],[1,28,3,28],[1,29,3,29],[1,30,3,30],[1,18,3,18],[1,19,3,19],[1,20,3,20],[1,21,3,21],[1,22,3,22],[1,24,3,24],[1,11,3,11],[1,13,3,13],[1,14,3,14],[1,15,3,15],[1,16,3,16],[1,17,3,17],[1,0,3,0],[1,2,3,2],[1,3,3,3],[1,4,3,4],[1,5,3,5],[1,6,3,10]]}
["Plant Name","NACE Code  (required information)","Traceable identifier for the individual medium combustion plant (MCP) or generator (required information)","Plant Manufacturer","Model Name","Is the plant stationary or mobile?","Stack or emission point national grid reference  (required information)","Easting","Northing","Latitude ","Longitude","Date operation started (required information)","Rated thermal input of the individual MCP or generator in MW thermal (required information)\n","Total rated thermal input of all plant or generators on site in MWth","Technology or type (required information)","Main fuel type used (required information)","Secondary fuel type used (required information if plant is dual fired or uses a secondary fuel as a back up)","Is the secondary fuel used as a back up? and/or does the plant co fire using the secondary fuel?","Percentage of secondary fuel type used","Will the medium combustion plant be operated as a limited operting hours plant? (required information)","Annual operating hours. Please enter the hours the plant is intended to run. ","Do you want to declare that your existing MCP will meet new MCP emission limit values (ELVs) from the medium combustion plant directive? ","Annual load factor as a percentage","Background nitrogen dioxide (NO2) in ug/m3","Stack height (meters)","What is the  emission rate for the pollutants (Nm3/s )","Is the plant in an Air Quality Management Area (AQMA) for a declared pollutant? ","What is the name of the local authority who has declared th AQMA? ","Closest human receptor (meters)","Human receptor details","Closest Ecological receptor (meters)","Ecological receptor details","Will secondary abatement be fitted to the plant","What type of secondary abatement will be fitted? ","date of capacity market of balancing service agreement or FiT accreditation (DD/MM/YYYY)"]
["Guidance","NACE code means Nomenclature of Economic Activities and is the European statistical classification of economic activities","Serial number or other unique identifier, name plate, manufacturer and or model",null,null,null,"Enter the coordinates of the emission point of the plant (not the site). You should enter this as a National Grid Reference or as a Latitude and Longitude pair. You should enter the values using the same coordinate system that you collected the raw data in. ",null,null,null,null,"When the plant or generator was first put into operation or the commissioning date, leave blank if new and not yet operating","This is for each individual unit. You should calculate this using one of the methods in the Association of Manufacturers and suppliers of Power Systems and ancillary equipment (AMPS) technical note: \"Determination of thermal input power of an engine driven generator\".\n","This should be the total of all the individual units of any size"," Boiler, Engine, Back up generator, turbine, boiler CHP, Engine CHP","Gas oil, Liquid fuels other than gas oil, Natural gas, Biogas, Other gaseous fuels, Solid biomass, Waste biomass, Woody solid biomass, Straw, Other solid fuels","Gas oil, Liquid fuels other than gas oil, Natural gas, Biogas, Other gaseous fuels, Solid biomass, Waste biomass, Woody solid biomass, Straw, Other solid fuels","Back up, co firing, both","Only required where co firing","Where the option of exemption under Article 6 (8) of the medium combustion plant directive is used the operator (as identified in Part A of the application form) can declare by indicating here that the MCP will not be operaterated more than the number of hours referred to in this paragraph. ","This should be the total for the year and be to the nearest whole number","Applicable for existing MCP plant only.  You may want to claim this to demonstrate low risk impacts to habitats as part of an air emissions risk assessment. If you do make this voluntary declaration we will include new MCP ELVs from the medium combustion plant directive in your permit.",null,"Go to the Defra UK Air website and select the most recent background map data. Set the local authority to that of your site location and the pollutant to NO2   ",null,null,"AQMAs interactive map",null,null,null,null,null,null,null,"applicable to SG applications only"]
[null,"Full Classification",null,null,null,null,null,null,null,null,null,null,"Microsoft Word - AMPS8704 - AMPS Technical Committee document template update 03.docx (environment-agency.gov.uk)",null,null,null,null,null,null,null,null,null,null,"Background Mapping data for local authorities - Defra, UK"]
[null,"Simple List"]
["Plant 1","C.11.05","GEN1234DE0001","Cummins","C12 D6T","stationary","ST 58132 72695 ",null,null,51.451680000000003,-2.6039127,"2016-05-23",2.1,12.4,"Engine","Gas oil\n","natural gas","co firing",20,"yes",7000,"yes",0.9,12,3,null,"yes","Cheshire West and Chester",100,"school",500,"SSSI, SAC","Yes","SCR","2018-12-01"]
["Fired Heater Phase 1",35.299999999999997,"TBC","TBC","TBC","Stationary","NZ 56360 25375",456360,525375,null,null,"TBC",18.3,null,"Boiler","Natural gas",null,null,null,"Yes",500,null,null,26.6,35,200,"No",null,1200,"Golf course",0,"Ramsar, SPA, SSSI","No"]
["Fired Heater Phase 2","35.30.","TBC","TBC","TBC","Stationary"," NZ 56558 25792",456558,525792,null,null,"TBC",18.3,null,"Boiler","Natural gas",null,null,null,"Yes",500,null,null,26.6,35,200,"No",null,1200,"Golf course",0,"Ramsar, SPA, SSSI","No"]
["Emergency Generator Phase 1","35.1.11","TBC","TBC","TBC","Stationary","NZ 56542 25209",456542,525209,null,null,"TBC",8.86,null,"Back up generator","Gas oil",null,null,null,"Yes",500,null,null,26.6,10,2000,"No",null,1200,"Golf course",0,"Ramsar, SPA, SSSI","No"]
["Emergency Generator Phase 2","35.1.11","TBC","TBC","TBC","Stationary","NZ 56441 25830",456441,525830,null,null,"TBC",8.86,null,"Back up generator","Gas oil",null,null,null,"Yes",500,null,null,26.6,10,2000,"No",null,1200,"Golf course",0,"Ramsar, SPA, SSSI","No"]
["Firewater pump Phase 1",20.11,"TBC","TBC","TBC","Stationary","TBC","TBC","TBC",null,null,"TBC",1.3,null,null,"Gas oil",null,null,null,"Yes",500,null,null,26.6,"TBC","TBC","No",null,1200,"Golf course",0,"Ramsar, SPA, SSSI","No"]
["Firewater pump Phase 2",20.11,"TBC","TBC","TBC","Stationary","TBC","TBC","TBC",null,null,"TBC",1.3,null,null,"Gas oil",null,null,null,"Yes",500,null,null,26.6,"TBC","TBC","No",null,1200,"Golf course",0,"Ramsar, SPA, SSSI","No"]
[]
[]
[]
[]
[]
[]
[]
[]
[]
["Add more rows as you need them"]

{"sheet":"Resp_1","index":1,"n_rows":54,"n_cols":34,"rows_kept":54,"cut":false,"hidden":true,"merged":[]}
["Plant Name","_1136","_1333","_1234","Easting","Northing","Lat","Long","_1224","_1137","_1118","_1125","_1152","_1230","_1138","_1328","_1062","_1326","_1021","_1015","_1140","_1121","_1117","_1124","_2005","_1016","_2006","_1150","_1040","_1225","_2017","Release Point NGR","Mobile Plant","NACE Code"]
[{"$f":"MCP_or_generator_list!A6","v":"Fired Heater Phase 1"},{"$f":"MCP_or_generator_list!C6","v":"TBC"},{"$f":"MCP_or_generator_list!D6","v":"TBC"},{"$f":"MCP_or_generator_list!E6","v":"TBC"},{"$f":"MCP_or_generator_list!H6","v":456360},{"$f":"MCP_or_generator_list!I6","v":525375},{"$f":"MCP_or_generator_list!J6","v":0},{"$f":"MCP_or_generator_list!K6","v":0},{"$f":"MCP_or_generator_list!L6","v":"TBC"},{"$f":"MCP_or_generator_list!M6","v":18.3},{"$f":"MCP_or_generator_list!O6","v":"Boiler"},{"$f":"MCP_or_generator_list!P6","v":"Natural gas"},{"$f":"MCP_or_generator_list!Q6","v":0},{"$f":"MCP_or_generator_list!R6","v":0},{"$f":"MCP_or_generator_list!S6","v":0},{"$f":"MCP_or_generator_list!T6","v":"Yes"},{"$f":"MCP_or_generator_list!U6","v":500},{"$f":"MCP_or_generator_list!V6","v":0},{"$f":"MCP_or_generator_list!W6","v":0},{"$f":"MCP_or_generator_list!X6","v":26.6},{"$f":"MCP_or_generator_list!Y6","v":35},{"$f":"MCP_or_generator_list!AA6","v":"No"},{"$f":"MCP_or_generator_list!AB6","v":0},{"$f":"MCP_or_generator_list!AC6","v":1200},{"$f":"MCP_or_generator_list!AD6","v":"Golf course"},{"$f":"MCP_or_generator_list!AE6","v":0},{"$f":"MCP_or_generator_list!AF6","v":"Ramsar, SPA, SSSI"},{"$f":"MCP_or_generator_list!AG6","v":"No"},{"$f":"MCP_or_generator_list!AH6","v":0},{"$f":"MCP_or_generator_list!AI6","v":"00:00:00"},{"$f":"MCP_or_generator_list!Z6","v":200},{"$f":"MCP_or_generator_list!G6","v":"NZ 56360 25375"},{"$f":"IF(ISERROR(SEARCH(\"mobile\",MCP_or_generator_list!F6)),\"No\",\"Yes\")","v":"No"},{"$f":"MCP_or_generator_list!B6","v":35.299999999999997}]
[{"$f":"MCP_or_generator_list!A7","v":"Fired Heater Phase 2"},{"$f":"MCP_or_generator_list!C7","v":"TBC"},{"$f":"MCP_or_generator_list!D7","v":"TBC"},{"$f":"MCP_or_generator_list!E7","v":"TBC"},{"$f":"MCP_or_generator_list!H7","v":456558},{"$f":"MCP_or_generator_list!I7","v":525792},{"$f":"MCP_or_generator_list!J7","v":0},{"$f":"MCP_or_generator_list!K7","v":0},{"$f":"MCP_or_generator_list!L7","v":"TBC"},{"$f":"MCP_or_generator_list!M7","v":18.3},{"$f":"MCP_or_generator_list!O7","v":"Boiler"},{"$f":"MCP_or_generator_list!P7","v":"Natural gas"},{"$f":"MCP_or_generator_list!Q7","v":0},{"$f":"MCP_or_generator_list!R7","v":0},{"$f":"MCP_or_generator_list!S7","v":0},{"$f":"MCP_or_generator_list!T7","v":"Yes"},{"$f":"MCP_or_generator_list!U7","v":500},{"$f":"MCP_or_generator_list!V7","v":0},{"$f":"MCP_or_generator_list!W7","v":0},{"$f":"MCP_or_generator_list!X7","v":26.6},{"$f":"MCP_or_generator_list!Y7","v":35},{"$f":"MCP_or_generator_list!AA7","v":"No"},{"$f":"MCP_or_generator_list!AB7","v":0},{"$f":"MCP_or_generator_list!AC7","v":1200},{"$f":"MCP_or_generator_list!AD7","v":"Golf course"},{"$f":"MCP_or_generator_list!AE7","v":0},{"$f":"MCP_or_generator_list!AF7","v":"Ramsar, SPA, SSSI"},{"$f":"MCP_or_generator_list!AG7","v":"No"},{"$f":"MCP_or_generator_list!AH7","v":0},{"$f":"MCP_or_generator_list!AI7","v":"00:00:00"},{"$f":"MCP_or_generator_list!Z7","v":200},{"$f":"MCP_or_generator_list!G7","v":" NZ 56558 25792"},{"$f":"IF(ISERROR(SEARCH(\"mobile\",MCP_or_generator_list!F7)),\"No\",\"Yes\")","v":"No"},{"$f":"MCP_or_generator_list!B7","v":"35.30."}]
[{"$f":"MCP_or_generator_list!A8","v":"Emergency Generator Phase 1"},{"$f":"MCP_or_generator_list!C8","v":"TBC"},{"$f":"MCP_or_generator_list!D8","v":"TBC"},{"$f":"MCP_or_generator_list!E8","v":"TBC"},{"$f":"MCP_or_generator_list!H8","v":456542},{"$f":"MCP_or_generator_list!I8","v":525209},{"$f":"MCP_or_generator_list!J8","v":0},{"$f":"MCP_or_generator_list!K8","v":0},{"$f":"MCP_or_generator_list!L8","v":"TBC"},{"$f":"MCP_or_generator_list!M8","v":8.86},{"$f":"MCP_or_generator_list!O8","v":"Back up generator"},{"$f":"MCP_or_generator_list!P8","v":"Gas oil"},{"$f":"MCP_or_generator_list!Q8","v":0},{"$f":"MCP_or_generator_list!R8","v":0},{"$f":"MCP_or_generator_list!S8","v":0},{"$f":"MCP_or_generator_list!T8","v":"Yes"},{"$f":"MCP_or_generator_list!U8","v":500},{"$f":"MCP_or_generator_list!V8","v":0},{"$f":"MCP_or_generator_list!W8","v":0},{"$f":"MCP_or_generator_list!X8","v":26.6},{"$f":"MCP_or_generator_list!Y8","v":10},{"$f":"MCP_or_generator_list!AA8","v":"No"},{"$f":"MCP_or_generator_list!AB8","v":0},{"$f":"MCP_or_generator_list!AC8","v":1200},{"$f":"MCP_or_generator_list!AD8","v":"Golf course"},{"$f":"MCP_or_generator_list!AE8","v":0},{"$f":"MCP_or_generator_list!AF8","v":"Ramsar, SPA, SSSI"},{"$f":"MCP_or_generator_list!AG8","v":"No"},{"$f":"MCP_or_generator_list!AH8","v":0},{"$f":"MCP_or_generator_list!AI8","v":"00:00:00"},{"$f":"MCP_or_generator_list!Z8","v":2000},{"$f":"MCP_or_generator_list!G8","v":"NZ 56542 25209"},{"$f":"IF(ISERROR(SEARCH(\"mobile\",MCP_or_generator_list!F8)),\"No\",\"Yes\")","v":"No"},{"$f":"MCP_or_generator_list!B8","v":"35.1.11"}]
[{"$f":"MCP_or_generator_list!A9","v":"Emergency Generator Phase 2"},{"$f":"MCP_or_generator_list!C9","v":"TBC"},{"$f":"MCP_or_generator_list!D9","v":"TBC"},{"$f":"MCP_or_generator_list!E9","v":"TBC"},{"$f":"MCP_or_generator_list!H9","v":456441},{"$f":"MCP_or_generator_list!I9","v":525830},{"$f":"MCP_or_generator_list!J9","v":0},{"$f":"MCP_or_generator_list!K9","v":0},{"$f":"MCP_or_generator_list!L9","v":"TBC"},{"$f":"MCP_or_generator_list!M9","v":8.86},{"$f":"MCP_or_generator_list!O9","v":"Back up generator"},{"$f":"MCP_or_generator_list!P9","v":"Gas oil"},{"$f":"MCP_or_generator_list!Q9","v":0},{"$f":"MCP_or_generator_list!R9","v":0},{"$f":"MCP_or_generator_list!S9","v":0},{"$f":"MCP_or_generator_list!T9","v":"Yes"},{"$f":"MCP_or_generator_list!U9","v":500},{"$f":"MCP_or_generator_list!V9","v":0},{"$f":"MCP_or_generator_list!W9","v":0},{"$f":"MCP_or_generator_list!X9","v":26.6},{"$f":"MCP_or_generator_list!Y9","v":10},{"$f":"MCP_or_generator_list!AA9","v":"No"},{"$f":"MCP_or_generator_list!AB9","v":0},{"$f":"MCP_or_generator_list!AC9","v":1200},{"$f":"MCP_or_generator_list!AD9","v":"Golf course"},{"$f":"MCP_or_generator_list!AE9","v":0},{"$f":"MCP_or_generator_list!AF9","v":"Ramsar, SPA, SSSI"},{"$f":"MCP_or_generator_list!AG9","v":"No"},{"$f":"MCP_or_generator_list!AH9","v":0},{"$f":"MCP_or_generator_list!AI9","v":"00:00:00"},{"$f":"MCP_or_generator_list!Z9","v":2000},{"$f":"MCP_or_generator_list!G9","v":"NZ 56441 25830"},{"$f":"IF(ISERROR(SEARCH(\"mobile\",MCP_or_generator_list!F9)),\"No\",\"Yes\")","v":"No"},{"$f":"MCP_or_generator_list!B9","v":"35.1.11"}]
[{"$f":"MCP_or_generator_list!A10","v":"Firewater pump Phase 1"},{"$f":"MCP_or_generator_list!C10","v":"TBC"},{"$f":"MCP_or_generator_list!D10","v":"TBC"},{"$f":"MCP_or_generator_list!E10","v":"TBC"},{"$f":"MCP_or_generator_list!H10","v":"TBC"},{"$f":"MCP_or_generator_list!I10","v":"TBC"},{"$f":"MCP_or_generator_list!J10","v":0},{"$f":"MCP_or_generator_list!K10","v":0},{"$f":"MCP_or_generator_list!L10","v":"TBC"},{"$f":"MCP_or_generator_list!M10","v":1.3},{"$f":"MCP_or_generator_list!O10","v":0},{"$f":"MCP_or_generator_list!P10","v":"Gas oil"},{"$f":"MCP_or_generator_list!Q10","v":0},{"$f":"MCP_or_generator_list!R10","v":0},{"$f":"MCP_or_generator_list!S10","v":0},{"$f":"MCP_or_generator_list!T10","v":"Yes"},{"$f":"MCP_or_generator_list!U10","v":500},{"$f":"MCP_or_generator_list!V10","v":0},{"$f":"MCP_or_generator_list!W10","v":0},{"$f":"MCP_or_generator_list!X10","v":26.6},{"$f":"MCP_or_generator_list!Y10","v":"TBC"},{"$f":"MCP_or_generator_list!AA10","v":"No"},{"$f":"MCP_or_generator_list!AB10","v":0},{"$f":"MCP_or_generator_list!AC10","v":1200},{"$f":"MCP_or_generator_list!AD10","v":"Golf course"},{"$f":"MCP_or_generator_list!AE10","v":0},{"$f":"MCP_or_generator_list!AF10","v":"Ramsar, SPA, SSSI"},{"$f":"MCP_or_generator_list!AG10","v":"No"},{"$f":"MCP_or_generator_list!AH10","v":0},{"$f":"MCP_or_generator_list!AI10","v":"00:00:00"},{"$f":"MCP_or_generator_list!Z10","v":"TBC"},{"$f":"MCP_or_generator_list!G10","v":"TBC"},{"$f":"IF(ISERROR(SEARCH(\"mobile\",MCP_or_generator_list!F10)),\"No\",\"Yes\")","v":"No"},{"$f":"MCP_or_generator_list!B10","v":20.11}]
[{"$f":"MCP_or_generator_list!A11","v":"Firewater pump Phase 2"},{"$f":"MCP_or_generator_list!C11","v":"TBC"},{"$f":"MCP_or_generator_list!D11","v":"TBC"},{"$f":"MCP_or_generator_list!E11","v":"TBC"},{"$f":"MCP_or_generator_list!H11","v":"TBC"},{"$f":"MCP_or_generator_list!I11","v":"TBC"},{"$f":"MCP_or_generator_list!J11","v":0},{"$f":"MCP_or_generator_list!K11","v":0},{"$f":"MCP_or_generator_list!L11","v":"TBC"},{"$f":"MCP_or_generator_list!M11","v":1.3},{"$f":"MCP_or_generator_list!O11","v":0},{"$f":"MCP_or_generator_list!P11","v":"Gas oil"},{"$f":"MCP_or_generator_list!Q11","v":0},{"$f":"MCP_or_generator_list!R11","v":0},{"$f":"MCP_or_generator_list!S11","v":0},{"$f":"MCP_or_generator_list!T11","v":"Yes"},{"$f":"MCP_or_generator_list!U11","v":500},{"$f":"MCP_or_generator_list!V11","v":0},{"$f":"MCP_or_generator_list!W11","v":0},{"$f":"MCP_or_generator_list!X11","v":26.6},{"$f":"MCP_or_generator_list!Y11","v":"TBC"},{"$f":"MCP_or_generator_list!AA11","v":"No"},{"$f":"MCP_or_generator_list!AB11","v":0},{"$f":"MCP_or_generator_list!AC11","v":1200},{"$f":"MCP_or_generator_list!AD11","v":"Golf course"},{"$f":"MCP_or_generator_list!AE11","v":0},{"$f":"MCP_or_generator_list!AF11","v":"Ramsar, SPA, SSSI"},{"$f":"MCP_or_generator_list!AG11","v":"No"},{"$f":"MCP_or_generator_list!AH11","v":0},{"$f":"MCP_or_generator_list!AI11","v":"00:00:00"},{"$f":"MCP_or_generator_list!Z11","v":"TBC"},{"$f":"MCP_or_generator_list!G11","v":"TBC"},{"$f":"IF(ISERROR(SEARCH(\"mobile\",MCP_or_generator_list!F11)),\"No\",\"Yes\")","v":"No"},{"$f":"MCP_or_generator_list!B11","v":20.11}]
[{"$f":"MCP_or_generator_list!A12","v":0},{"$f":"MCP_or_generator_list!C12","v":0},{"$f":"MCP_or_generator_list!D12","v":0},{"$f":"MCP_or_generator_list!E12","v":0},{"$f":"MCP_or_generator_list!H12","v":0},{"$f":"MCP_or_generator_list!I12","v":0},{"$f":"MCP_or_generator_list!J12","v":0},{"$f":"MCP_or_generator_list!K12","v":0},{"$f":"MCP_or_generator_list!L12","v":"00:00:00"},{"$f":"MCP_or_generator_list!M12","v":0},{"$f":"MCP_or_generator_list!O12","v":0},{"$f":"MCP_or_generator_list!P12","v":0},{"$f":"MCP_or_generator_list!Q12","v":0},{"$f":"MCP_or_generator_list!R12","v":0},{"$f":"MCP_or_generator_list!S12","v":0},{"$f":"MCP_or_generator_list!T12","v":0},{"$f":"MCP_or_generator_list!U12","v":0},{"$f":"MCP_or_generator_list!V12","v":0},{"$f":"MCP_or_generator_list!W12","v":0},{"$f":"MCP_or_generator_list!X12","v":0},{"$f":"MCP_or_generator_list!Y12","v":0},{"$f":"MCP_or_generator_list!AA12","v":0},{"$f":"MCP_or_generator_list!AB12","v":0},{"$f":"MCP_or_generator_list!AC12","v":0},{"$f":"MCP_or_generator_list!AD12","v":0},{"$f":"MCP_or_generator_list!AE12","v":0},{"$f":"MCP_or_generator_list!AF12","v":0},{"$f":"MCP_or_generator_list!AG12","v":0},{"$f":"MCP_or_generator_list!AH12","v":0},{"$f":"MCP_or_generator_list!AI12","v":"00:00:00"},{"$f":"MCP_or_generator_list!Z12","v":0},{"$f":"MCP_or_generator_list!G12","v":0},{"$f":"IF(ISERROR(SEARCH(\"mobile\",MCP_or_generator_list!F12)),\"No\",\"Yes\")","v":"No"},{"$f":"MCP_or_generator_list!B12","v":0}]
[{"$f":"MCP_or_generator_list!A13","v":0},{"$f":"MCP_or_generator_list!C13","v":0},{"$f":"MCP_or_generator_list!D13","v":0},{"$f":"MCP_or_generator_list!E13","v":0},{"$f":"MCP_or_generator_list!H13","v":0},{"$f":"MCP_or_generator_list!I13","v":0},{"$f":"MCP_or_generator_list!J13","v":0},{"$f":"MCP_or_generator_list!K13","v":0},{"$f":"MCP_or_generator_list!L13","v":"00:00:00"},{"$f":"MCP_or_generator_list!M13","v":0},{"$f":"MCP_or_generator_list!O13","v":0},{"$f":"MCP_or_generator_list!P13","v":0},{"$f":"MCP_or_generator_list!Q13","v":0},{"$f":"MCP_or_generator_list!R13","v":0},{"$f":"MCP_or_generator_list!S13","v":0},{"$f":"MCP_or_generator_list!T13","v":0},{"$f":"MCP_or_generator_list!U13","v":0},{"$f":"MCP_or_generator_list!V13","v":0},{"$f":"MCP_or_generator_list!W13","v":0},{"$f":"MCP_or_generator_list!X13","v":0},{"$f":"MCP_or_generator_list!Y13","v":0},{"$f":"MCP_or_generator_list!AA13","v":0},{"$f":"MCP_or_generator_list!AB13","v":0},{"$f":"MCP_or_generator_list!AC13","v":0},{"$f":"MCP_or_generator_list!AD13","v":0},{"$f":"MCP_or_generator_list!AE13","v":0},{"$f":"MCP_or_generator_list!AF13","v":0},{"$f":"MCP_or_generator_list!AG13","v":0},{"$f":"MCP_or_generator_list!AH13","v":0},{"$f":"MCP_or_generator_list!AI13","v":"00:00:00"},{"$f":"MCP_or_generator_list!Z13","v":0},{"$f":"MCP_or_generator_list!G13","v":0},{"$f":"IF(ISERROR(SEARCH(\"mobile\",MCP_or_generator_list!F13)),\"No\",\"Yes\")","v":"No"},{"$f":"MCP_or_generator_list!B13","v":0}]
[{"$f":"MCP_or_generator_list!A14","v":0},{"$f":"MCP_or_generator_list!C14","v":0},{"$f":"MCP_or_generator_list!D14","v":0},{"$f":"MCP_or_generator_list!E14","v":0},{"$f":"MCP_or_generator_list!H14","v":0},{"$f":"MCP_or_generator_list!I14","v":0},{"$f":"MCP_or_generator_list!J14","v":0},{"$f":"MCP_or_generator_list!K14","v":0},{"$f":"MCP_or_generator_list!L14","v":"00:00:00"},{"$f":"MCP_or_generator_list!M14","v":0},{"$f":"MCP_or_generator_list!O14","v":0},{"$f":"MCP_or_generator_list!P14","v":0},{"$f":"MCP_or_generator_list!Q14","v":0},{"$f":"MCP_or_generator_list!R14","v":0},{"$f":"MCP_or_generator_list!S14","v":0},{"$f":"MCP_or_generator_list!T14","v":0},{"$f":"MCP_or_generator_list!U14","v":0},{"$f":"MCP_or_generator_list!V14","v":0},{"$f":"MCP_or_generator_list!W14","v":0},{"$f":"MCP_or_generator_list!X14","v":0},{"$f":"MCP_or_generator_list!Y14","v":0},{"$f":"MCP_or_generator_list!AA14","v":0},{"$f":"MCP_or_generator_list!AB14","v":0},{"$f":"MCP_or_generator_list!AC14","v":0},{"$f":"MCP_or_generator_list!AD14","v":0},{"$f":"MCP_or_generator_list!AE14","v":0},{"$f":"MCP_or_generator_list!AF14","v":0},{"$f":"MCP_or_generator_list!AG14","v":0},{"$f":"MCP_or_generator_list!AH14","v":0},{"$f":"MCP_or_generator_list!AI14","v":"00:00:00"},{"$f":"MCP_or_generator_list!Z14","v":0},{"$f":"MCP_or_generator_list!G14","v":0},{"$f":"IF(ISERROR(SEARCH(\"mobile\",MCP_or_generator_list!F14)),\"No\",\"Yes\")","v":"No"},{"$f":"MCP_or_generator_list!B14","v":0}]
[{"$f":"MCP_or_generator_list!A15","v":0},{"$f":"MCP_or_generator_list!C15","v":0},{"$f":"MCP_or_generator_list!D15","v":0},{"$f":"MCP_or_generator_list!E15","v":0},{"$f":"MCP_or_generator_list!H15","v":0},{"$f":"MCP_or_generator_list!I15","v":0},{"$f":"MCP_or_generator_list!J15","v":0},{"$f":"MCP_or_generator_list!K15","v":0},{"$f":"MCP_or_generator_list!L15","v":"00:00:00"},{"$f":"MCP_or_generator_list!M15","v":0},{"$f":"MCP_or_generator_list!O15","v":0},{"$f":"MCP_or_generator_list!P15","v":0},{"$f":"MCP_or_generator_list!Q15","v":0},{"$f":"MCP_or_generator_list!R15","v":0},{"$f":"MCP_or_generator_list!S15","v":0},{"$f":"MCP_or_generator_list!T15","v":0},{"$f":"MCP_or_generator_list!U15","v":0},{"$f":"MCP_or_generator_list!V15","v":0},{"$f":"MCP_or_generator_list!W15","v":0},{"$f":"MCP_or_generator_list!X15","v":0},{"$f":"MCP_or_generator_list!Y15","v":0},{"$f":"MCP_or_generator_list!AA15","v":0},{"$f":"MCP_or_generator_list!AB15","v":0},{"$f":"MCP_or_generator_list!AC15","v":0},{"$f":"MCP_or_generator_list!AD15","v":0},{"$f":"MCP_or_generator_list!AE15","v":0},{"$f":"MCP_or_generator_list!AF15","v":0},{"$f":"MCP_or_generator_list!AG15","v":0},{"$f":"MCP_or_generator_list!AH15","v":0},{"$f":"MCP_or_generator_list!AI15","v":"00:00:00"},{"$f":"MCP_or_generator_list!Z15","v":0},{"$f":"MCP_or_generator_list!G15","v":0},{"$f":"IF(ISERROR(SEARCH(\"mobile\",MCP_or_generator_list!F15)),\"No\",\"Yes\")","v":"No"},{"$f":"MCP_or_generator_list!B15","v":0}]
[{"$f":"MCP_or_generator_list!A16","v":0},{"$f":"MCP_or_generator_list!C16","v":0},{"$f":"MCP_or_generator_list!D16","v":0},{"$f":"MCP_or_generator_list!E16","v":0},{"$f":"MCP_or_generator_list!H16","v":0},{"$f":"MCP_or_generator_list!I16","v":0},{"$f":"MCP_or_generator_list!J16","v":0},{"$f":"MCP_or_generator_list!K16","v":0},{"$f":"MCP_or_generator_list!L16","v":"00:00:00"},{"$f":"MCP_or_generator_list!M16","v":0},{"$f":"MCP_or_generator_list!O16","v":0},{"$f":"MCP_or_generator_list!P16","v":0},{"$f":"MCP_or_generator_list!Q16","v":0},{"$f":"MCP_or_generator_list!R16","v":0},{"$f":"MCP_or_generator_list!S16","v":0},{"$f":"MCP_or_generator_list!T16","v":0},{"$f":"MCP_or_generator_list!U16","v":0},{"$f":"MCP_or_generator_list!V16","v":0},{"$f":"MCP_or_generator_list!W16","v":0},{"$f":"MCP_or_generator_list!X16","v":0},{"$f":"MCP_or_generator_list!Y16","v":0},{"$f":"MCP_or_generator_list!AA16","v":0},{"$f":"MCP_or_generator_list!AB16","v":0},{"$f":"MCP_or_generator_list!AC16","v":0},{"$f":"MCP_or_generator_list!AD16","v":0},{"$f":"MCP_or_generator_list!AE16","v":0},{"$f":"MCP_or_generator_list!AF16","v":0},{"$f":"MCP_or_generator_list!AG16","v":0},{"$f":"MCP_or_generator_list!AH16","v":0},{"$f":"MCP_or_generator_list!AI16","v":"00:00:00"},{"$f":"MCP_or_generator_list!Z16","v":0},{"$f":"MCP_or_generator_list!G16","v":0},{"$f":"IF(ISERROR(SEARCH(\"mobile\",MCP_or_generator_list!F16)),\"No\",\"Yes\")","v":"No"},{"$f":"MCP_or_generator_list!B16","v":0}]
[{"$f":"MCP_or_generator_list!A17","v":0},{"$f":"MCP_or_generator_list!C17","v":0},{"$f":"MCP_or_generator_list!D17","v":0},{"$f":"MCP_or_generator_list!E17","v":0},{"$f":"MCP_or_generator_list!H17","v":0},{"$f":"MCP_or_generator_list!I17","v":0},{"$f":"MCP_or_generator_list!J17","v":0},{"$f":"MCP_or_generator_list!K17","v":0},{"$f":"MCP_or_generator_list!L17","v":"00:00:00"},{"$f":"MCP_or_generator_list!M17","v":0},{"$f":"MCP_or_generator_list!O17","v":0},{"$f":"MCP_or_generator_list!P17","v":0},{"$f":"MCP_or_generator_list!Q17","v":0},{"$f":"MCP_or_generator_list!R17","v":0},{"$f":"MCP_or_generator_list!S17","v":0},{"$f":"MCP_or_generator_list!T17","v":0},{"$f":"MCP_or_generator_list!U17","v":0},{"$f":"MCP_or_generator_list!V17","v":0},{"$f":"MCP_or_generator_list!W17","v":0},{"$f":"MCP_or_generator_list!X17","v":0},{"$f":"MCP_or_generator_list!Y17","v":0},{"$f":"MCP_or_generator_list!AA17","v":0},{"$f":"MCP_or_generator_list!AB17","v":0},{"$f":"MCP_or_generator_list!AC17","v":0},{"$f":"MCP_or_generator_list!AD17","v":0},{"$f":"MCP_or_generator_list!AE17","v":0},{"$f":"MCP_or_generator_list!AF17","v":0},{"$f":"MCP_or_generator_list!AG17","v":0},{"$f":"MCP_or_generator_list!AH17","v":0},{"$f":"MCP_or_generator_list!AI17","v":"00:00:00"},{"$f":"MCP_or_generator_list!Z17","v":0},{"$f":"MCP_or_generator_list!G17","v":0},{"$f":"IF(ISERROR(SEARCH(\"mobile\",MCP_or_generator_list!F17)),\"No\",\"Yes\")","v":"No"},{"$f":"MCP_or_generator_list!B17","v":0}]
[{"$f":"MCP_or_generator_list!A18","v":0},{"$f":"MCP_or_generator_list!C18","v":0},{"$f":"MCP_or_generator_list!D18","v":0},{"$f":"MCP_or_generator_list!E18","v":0},{"$f":"MCP_or_generator_list!H18","v":0},{"$f":"MCP_or_generator_list!I18","v":0},{"$f":"MCP_or_generator_list!J18","v":0},{"$f":"MCP_or_generator_list!K18","v":0},{"$f":"MCP_or_generator_list!L18","v":"00:00:00"},{"$f":"MCP_or_generator_list!M18","v":0},{"$f":"MCP_or_generator_list!O18","v":0},{"$f":"MCP_or_generator_list!P18","v":0},{"$f":"MCP_or_generator_list!Q18","v":0},{"$f":"MCP_or_generator_list!R18","v":0},{"$f":"MCP_or_generator_list!S18","v":0},{"$f":"MCP_or_generator_list!T18","v":0},{"$f":"MCP_or_generator_list!U18","v":0},{"$f":"MCP_or_generator_list!V18","v":0},{"$f":"MCP_or_generator_list!W18","v":0},{"$f":"MCP_or_generator_list!X18","v":0},{"$f":"MCP_or_generator_list!Y18","v":0},{"$f":"MCP_or_generator_list!AA18","v":0},{"$f":"MCP_or_generator_list!AB18","v":0},{"$f":"MCP_or_generator_list!AC18","v":0},{"$f":"MCP_or_generator_list!AD18","v":0},{"$f":"MCP_or_generator_list!AE18","v":0},{"$f":"MCP_or_generator_list!AF18","v":0},{"$f":"MCP_or_generator_list!AG18","v":0},{"$f":"MCP_or_generator_list!AH18","v":0},{"$f":"MCP_or_generator_list!AI18","v":"00:00:00"},{"$f":"MCP_or_generator_list!Z18","v":0},{"$f":"MCP_or_generator_list!G18","v":0},{"$f":"IF(ISERROR(SEARCH(\"mobile\",MCP_or_generator_list!F18)),\"No\",\"Yes\")","v":"No"},{"$f":"MCP_or_generator_list!B18","v":0}]
[{"$f":"MCP_or_generator_list!A19","v":0},{"$f":"MCP_or_generator_list!C19","v":0},{"$f":"MCP_or_generator_list!D19","v":0},{"$f":"MCP_or_generator_list!E19","v":0},{"$f":"MCP_or_generator_list!H19","v":0},{"$f":"MCP_or_generator_list!I19","v":0},{"$f":"MCP_or_generator_list!J19","v":0},{"$f":"MCP_or_generator_list!K19","v":0},{"$f":"MCP_or_generator_list!L19","v":"00:00:00"},{"$f":"MCP_or_generator_list!M19","v":0},{"$f":"MCP_or_generator_list!O19","v":0},{"$f":"MCP_or_generator_list!P19","v":0},{"$f":"MCP_or_generator_list!Q19","v":0},{"$f":"MCP_or_generator_list!R19","v":0},{"$f":"MCP_or_generator_list!S19","v":0},{"$f":"MCP_or_generator_list!T19","v":0},{"$f":"MCP_or_generator_list!U19","v":0},{"$f":"MCP_or_generator_list!V19","v":0},{"$f":"MCP_or_generator_list!W19","v":0},{"$f":"MCP_or_generator_list!X19","v":0},{"$f":"MCP_or_generator_list!Y19","v":0},{"$f":"MCP_or_generator_list!AA19","v":0},{"$f":"MCP_or_generator_list!AB19","v":0},{"$f":"MCP_or_generator_list!AC19","v":0},{"$f":"MCP_or_generator_list!AD19","v":0},{"$f":"MCP_or_generator_list!AE19","v":0},{"$f":"MCP_or_generator_list!AF19","v":0},{"$f":"MCP_or_generator_list!AG19","v":0},{"$f":"MCP_or_generator_list!AH19","v":0},{"$f":"MCP_or_generator_list!AI19","v":"00:00:00"},{"$f":"MCP_or_generator_list!Z19","v":0},{"$f":"MCP_or_generator_list!G19","v":0},{"$f":"IF(ISERROR(SEARCH(\"mobile\",MCP_or_generator_list!F19)),\"No\",\"Yes\")","v":"No"},{"$f":"MCP_or_generator_list!B19","v":0}]
[{"$f":"MCP_or_generator_list!A20","v":0},{"$f":"MCP_or_generator_list!C20","v":0},{"$f":"MCP_or_generator_list!D20","v":0},{"$f":"MCP_or_generator_list!E20","v":0},{"$f":"MCP_or_generator_list!H20","v":0},{"$f":"MCP_or_generator_list!I20","v":0},{"$f":"MCP_or_generator_list!J20","v":0},{"$f":"MCP_or_generator_list!K20","v":0},{"$f":"MCP_or_generator_list!L20","v":"00:00:00"},{"$f":"MCP_or_generator_list!M20","v":0},{"$f":"MCP_or_generator_list!O20","v":0},{"$f":"MCP_or_generator_list!P20","v":0},{"$f":"MCP_or_generator_list!Q20","v":0},{"$f":"MCP_or_generator_list!R20","v":0},{"$f":"MCP_or_generator_list!S20","v":0},{"$f":"MCP_or_generator_list!T20","v":0},{"$f":"MCP_or_generator_list!U20","v":0},{"$f":"MCP_or_generator_list!V20","v":0},{"$f":"MCP_or_generator_list!W20","v":0},{"$f":"MCP_or_generator_list!X20","v":0},{"$f":"MCP_or_generator_list!Y20","v":0},{"$f":"MCP_or_generator_list!AA20","v":0},{"$f":"MCP_or_generator_list!AB20","v":0},{"$f":"MCP_or_generator_list!AC20","v":0},{"$f":"MCP_or_generator_list!AD20","v":0},{"$f":"MCP_or_generator_list!AE20","v":0},{"$f":"MCP_or_generator_list!AF20","v":0},{"$f":"MCP_or_generator_list!AG20","v":0},{"$f":"MCP_or_generator_list!AH20","v":0},{"$f":"MCP_or_generator_list!AI20","v":"00:00:00"},{"$f":"MCP_or_generator_list!Z20","v":0},{"$f":"MCP_or_generator_list!G20","v":0},{"$f":"IF(ISERROR(SEARCH(\"mobile\",MCP_or_generator_list!F20)),\"No\",\"Yes\")","v":"No"},{"$f":"MCP_or_generator_list!B20","v":0}]
[]
[]
["Named Range","Value",null,null,null,null,null,null,"MCP-DateCommissioned","ThermalInput","MCP-CombustionTechnology","MCP-FuelMain","MCP-FuelSec","MCP-FuelSecWhen","MCP-FuelUsageSec","MCP-Limitedhrs",null,"MeetnewELV","MCP-Loadas%","MCP-BackgroundNO2","MCP-StackHeight","AQMA","AQMA LA","HumanReceptor","MCP_HumanReceptorDetails","EcoReceptor","MCP_EcoReceptorDetails","MCP-Abated","MCP-AbateType","MCP-CapBalAgree"]
["MobilePlant",{"$f":"IF(ISERROR(SEARCH(\"mobile\",MCP_or_generator_list!F6)),\"No\",\"Yes\")","v":"No"}]
["NaceCode",{"$f":"MCP_or_generator_list!B6","v":35.299999999999997}]
[]
["Plant Name","Plant Name"]
["_1136","Serial No. of Plant\n(If already purchased)"]
["_1333","Plant Manufacturer"]
["_1234","Model Name"]
["Easting","Easting"]
["Northing","Northing"]
["Lat","Lat"]
["Long","Long"]
["_1224","Commissioning Date"]
["_1137","Size (MWth)"]
["_1118","Technology"]
["_1125","Fuel/Main Fuel"]
["IF an individual plant uses more than one fuel, give the proportions","IF an individual plant uses more than one fuel, give the proportions"]
["0",0]
["02",0]
["03",0]
["04",0]
["Stack Height (metres)","Stack Height (metres)"]
["_1027","If new plant does the flue share a common windshield?"]
["_1062","Annual Hours"]
["_1328","Limited Operating Hours"]
["_1021","Annual Load (%)"]
["_1121","In AQMA"]
["_1117","AQMA Local Authority"]
["_1124","Closest Human Receptor (metres)"]
["_2005","Human Receptor Details"]
["_1016","Closest Ecological Receptor (metres)"]
["_2006","Ecological Receptor Details"]
["_1015","Background NO2 (μg/m3)"]
["_1150","Will secondary abatement be fitted to the plant?"]
["_1040","Abatement Type"]
["_1326","Will Meet New ELVs"]